fUSD/lending_fUSD_20251222
["ID","MTS","AMOUNT","RATE_DAILY","PERIOD"]
[399452985,1766365849311,-190.67,0.00037869,100]
[399452986,1766365849322,-190.68,0.000379,120]
[399452987,1766365849334,-16800.0,0.00038,5]
[399452988,1766365849343,-1256.0,0.00038033,20]
[399452989,1766365849354,-980.14593883,0.00038356,5]
[399452990,1766365849363,-201.88,0.000384,14]
[399452991,1766365849373,-1044.42,0.000384,14]
[399452992,1766365849382,-1256.0,0.00038425,20]
[399452993,1766365849391,-800.0,0.00038481,14]
[399452994,1766365849401,-800.0,0.00038481,14]
[399452995,1766365849411,-800.0,0.00038481,14]
[399452996,1766365849420,-800.0,0.00038481,14]
[399452997,1766365849429,-800.0,0.00038481,14]
[399452998,1766365849438,-800.0,0.00038481,14]
[399452999,1766365849449,-800.0,0.00038481,14]
[399453000,1766365849459,-800.0,0.00038481,14]
[399453001,1766365849468,-877.33,0.00038501,5]
[399453002,1766365849478,-594.28559279,0.00038556,2]
[399453003,1766365849487,-363.49948483,0.00038556,2]
[399453004,1766365849496,-576.44899553,0.00038556,2]
[399453005,1766365849507,-792.38079052,0.00038556,2]
[399453006,1766365849516,-484.66597998,0.00038556,2]
[399453007,1766365849525,-768.59866071,0.00038556,2]
[399453008,1766365849535,-962.2,0.000386,30]
[399453009,1766365849544,-2000.0,0.000386,30]
[399453010,1766365849553,-924.745,0.00038603,30]
[399453011,1766365849563,-150.0,0.0003861,30]
[399453012,1766365849572,-150.0,0.0003861,30]
[399453013,1766365849581,-7000.0,0.0003861,2]
[399453014,1766365849590,-7000.0,0.0003861,2]
[399453015,1766365849599,-150.0,0.0003863,2]
[399453016,1766365849609,-150.0,0.0003863,2]
[399453017,1766365849618,-150.0,0.0003863,2]
[399453018,1766365849628,-150.0,0.0003863,2]
[399453019,1766365849637,-150.0,0.0003863,2]
[399453020,1766365849649,-150.0,0.0003863,2]
[399453021,1766365849659,-150.0,0.0003863,2]
[399453022,1766365849669,-464.69,0.0003863,2]
[399453023,1766365849678,-150.0,0.0003863,2]
[399453024,1766365849687,-150.0,0.0003863,2]
[399453025,1766365849698,-150.0,0.0003863,2]
[399453026,1766365849709,-150.0,0.0003863,2]
[399453027,1766365849719,-464.69,0.0003863,2]
[399453028,1766365849728,-150.0,0.0003863,2]
[399453029,1766365849738,-200.0,0.00038687,20]
[399453030,1766365849749,-481.25,0.00038767,2]
[399453031,1766365849758,-481.25,0.00038767,2]
[399453032,1766365849767,-481.25,0.00038767,2]
[399453033,1766365849776,-481.25,0.00038767,2]
[399453034,1766365849785,-481.25,0.00038767,2]
[399453035,1766365849795,-481.25,0.00038767,2]
[399453036,1766365849805,-481.25,0.00038767,2]
[399453037,1766365849814,-481.25,0.00038767,2]
[399453038,1766365849822,-481.25,0.00038767,2]
[399453039,1766365849831,-481.25,0.00038767,2]
[399453040,1766365849840,-481.25,0.00038767,2]
[399453041,1766365849849,-481.25,0.00038767,2]
[399453042,1766365849858,-481.25,0.00038767,2]
[399453043,1766365849867,-481.25,0.00038767,2]
[399453044,1766365849876,-481.25,0.00038767,2]
[399453045,1766365849886,-659.33,0.00038767,2]
[399453046,1766365849896,-659.33,0.00038767,2]
[399453047,1766365849905,-659.33,0.00038767,2]
[399453048,1766365849914,-659.33,0.00038767,2]
[399453049,1766365849923,-659.33,0.00038767,2]
[399453050,1766365849932,-659.33,0.00038767,2]
[399453051,1766365849942,-659.33,0.00038767,2]
[399453052,1766365849952,-659.33,0.00038767,2]
[399453053,1766365849962,-659.33,0.00038767,2]
[399453054,1766365849971,-659.33,0.00038767,2]
[399453055,1766365849981,-2000.0,0.00038805,3]
[399453056,1766365849990,-1256.0,0.00038817,20]
[399453057,1766365850001,-153.42,0.000389,14]
[399453058,1766365850011,-1187.9545071,0.000389,2]
[399453059,1766365850020,-1515.76106222,0.000389,2]
[399453060,1766365850030,-161.10414001,0.000389,2]
[399453061,1766365850041,-9583.4,0.00038904,2]
[399453062,1766365850052,-151.0,0.00038997,14]
[399453063,1766365850061,-500.0,0.00038998,60]
[399453064,1766365850070,-500.0,0.00038998,60]
[399453065,1766365850081,-500.0,0.00038999,60]
[399453066,1766365850091,-1283.44242147,0.00038999,30]
[399453067,1766365850100,-1283.44242147,0.00038999,30]
[399453068,1766365850109,-500.0,0.00038999,60]
[399453069,1766365850118,-500.0,0.00038999,60]
[399453070,1766365850127,-500.0,0.00038999,60]
[399453071,1766365850135,-500.0,0.00038999,60]
[399453072,1766365850144,-500.0,0.00038999,60]
[399453073,1766365850153,-500.0,0.00038999,60]
[399453074,1766365850162,-260.05,0.00038999,60]
[399453075,1766365850171,-500.0,0.00038999,60]
[399453076,1766365850180,-416.97007876,0.00038999,60]
[399453077,1766365850189,-500.0,0.00038999,60]
[399453078,1766365850198,-525.36930819,0.00038999,60]
[399453079,1766365850207,-505.3255501,0.00038999,60]
[399453080,1766365850219,-300.0,0.00038999,10]
[399453081,1766365850229,-300.0,0.00038999,10]
[399453082,1766365850239,-300.0,0.00038999,10]
[399453083,1766365850250,-1335.88140963,0.00039,31]
[399453084,1766365850260,-5069733.85226812,0.00039,2]
[399453085,1766365850269,-781.25525048,0.00039,2]
[399453086,1766365850279,-151.6,0.00039,2]
[399453087,1766365850288,-30560.28975348,0.00039,2]
[399453088,1766365850301,-522930.32169783,0.00039,2]
[399453089,1766365850376,500.0,8.552e-05,2]
[399453090,1766365850419,338.25556602,8.552e-05,2]
[399453091,1766365850511,-113.68135719,0.00013643,2]
[399453092,1766365850561,-48.38206337,0.00013643,2]
[399453093,1766365850570,-151.0,0.00014619,2]
[399453094,1766365850579,-170.67,0.00036164,2]
[399453095,1766365850588,-386.24793663,0.00038767,2]
[399453096,1766365850649,-273.08206337,0.00038767,2]
[399453097,1766365850658,-1156.37387335,0.000389,2]
[399453098,1766365850667,-182.02418825,0.00039,2]
[399453099,1766365850678,-1142.32863983,0.00039,2]
[399453100,1766365850689,-1000.0,0.00039,2]
[399453101,1766365850704,-5928.89057711,0.00039,2]
[399453113,1766365874421,500.0,8.552e-05,2]
[399453114,1766365874462,500.0,8.552e-05,2]
[399453115,1766365874515,500.0,8.552e-05,2]
[399453116,1766365874554,500.0,8.552e-05,2]
[399453117,1766365874599,500.0,8.552e-05,2]
[399453118,1766365874639,500.0,8.552e-05,2]
[399453119,1766365874693,500.0,8.552e-05,2]
[399453120,1766365874733,500.0,8.552e-05,2]
[399453121,1766365874778,500.0,8.552e-05,2]
[399453122,1766365874820,500.0,8.552e-05,2]
[399453123,1766365874859,500.0,8.552e-05,2]
[399453124,1766365874900,286.18358325,8.552e-05,2]
[399453125,1766365874940,500.0,8.552e-05,2]
[399453126,1766365874981,500.0,8.552e-05,2]
[399453127,1766365875375,500.0,8.552e-05,2]
[399453128,1766365875418,500.0,8.552e-05,2]
[399453129,1766365875459,500.0,8.552e-05,2]
[399453130,1766365875504,500.0,8.552e-05,2]
[399453131,1766365875543,500.0,8.552e-05,2]
[399453132,1766365889477,500.0,8.552e-05,2]
[399453133,1766365889823,213.82641675,8.552e-05,2]
[399453134,1766365889846,65.11784281,8.552e-05,2]
[399453135,1766365892769,500.0,8.552e-05,2]
[399453136,1766365892811,500.0,8.552e-05,2]
[399453137,1766365898720,500.0,8.552e-05,2]
[399453138,1766365898758,500.0,8.552e-05,2]
[399453152,1766365942184,500.0,8.552e-05,2]
[399453153,1766365942228,500.0,8.552e-05,2]
[399453154,1766365942265,468.42809822,8.552e-05,2]
[399453157,1766365951863,500.0,8.552e-05,2]
[399453158,1766365951902,500.0,8.552e-05,2]
[399453159,1766365951941,500.0,8.552e-05,2]
[399453160,1766365951983,642.87726221,8.552e-05,2]
[399453161,1766365953875,359.99177651,8.552e-05,2]
[399453164,1766365975570,500.0,8.552e-05,2]
[399453165,1766365975613,500.0,8.552e-05,2]
[399453166,1766365975653,500.0,8.552e-05,2]
[399453167,1766365976014,150.0,8.552e-05,2]
[399453168,1766365976058,500.0,8.552e-05,2]
[399453169,1766365976098,500.0,8.552e-05,2]
[399453170,1766365976137,500.0,8.552e-05,2]
[399453171,1766365985270,500.0,8.552e-05,2]
[399453173,1766365988423,500.0,8.552e-05,2]
[399453174,1766365988475,542.65656533,8.552e-05,2]
[399453176,1766365991163,238.09747358,9.407e-05,2]
[399453177,1766365991226,500.0,9.407e-05,2]
[399453178,1766365991336,500.0,9.407e-05,2]
[399453179,1766365991433,500.0,9.407e-05,2]
[399453180,1766365991534,500.0,9.407e-05,2]
[399453181,1766365991613,500.0,9.407e-05,2]
[399453182,1766365991714,196.25488988,9.407e-05,2]
[399453183,1766365992442,500.0,9.407e-05,2]
[399453184,1766365992504,500.0,9.407e-05,2]
[399453185,1766365992582,500.0,9.407e-05,2]
[399453190,1766366012644,500.0,9.407e-05,2]
[399453191,1766366012698,500.0,9.407e-05,2]
[399453270,1766366169494,596.0,0.00035616,30]
[399453309,1766366419223,3975.05,6.003e-05,2]
[399453310,1766366419443,3975.05,6.319e-05,2]
[399453311,1766366419644,2049.91,6.635e-05,2]
[399453312,1766366419672,1925.14,6.635e-05,2]
[399453313,1766366419843,3975.05,6.951e-05,2]
[399453314,1766366420037,3975.05,7.267e-05,2]
[399453315,1766366420237,124.77,7.583e-05,2]
[399453316,1766366420264,3850.28,7.583e-05,2]
[399453317,1766366420441,3975.05,7.899e-05,2]
[399453318,1766366420646,2174.68,8.215e-05,2]
[399453319,1766366420672,1800.37,8.215e-05,2]
[399453320,1766366420871,3975.05,8.531e-05,2]
[399453321,1766366421618,3975.05,8.846e-05,2]
[399453322,1766366422179,249.54,9.162e-05,2]
[399453323,1766366422201,3725.51,9.162e-05,2]
[399453324,1766366422242,3975.05,9.478e-05,2]
[399453367,1766366497471,185.928,0.0003511,41]
[399453449,1766366718992,2952.06261768,9e-05,2]
[399453482,1766366952322,3545.091371,9.527e-05,2]
[399453502,1766367031819,-1864.83,9.576e-05,2]
[399453503,1766367031829,-250.0,9.745e-05,2]
[399453504,1766367031839,-3975.05,9.794e-05,2]
[399453505,1766367031850,-250.0,9.854e-05,2]
[399453506,1766367031859,-1200.0,0.00010046,2]
[399453507,1766367031869,-1200.0,0.00010046,2]
[399453508,1766367031878,-150.0,0.00010046,2]
[399453509,1766367031887,-38286.21615995,0.00010047,2]
[399453510,1766367031944,-5195.18357432,0.00010047,2]
[399453511,1766367031955,-45323.41916573,0.00010047,2]
[399453512,1766367031965,-6689.5733,0.00010047,2]
[399453513,1766367031975,-4076.1662,0.00010048,2]
[399453514,1766367031984,-235.9438,0.00010048,2]
[399453515,1766367031994,-2500.0,0.00010048,2]
[399453516,1766367032003,-845.4536253,0.00010048,2]
[399453517,1766367032013,-669.66014114,0.00010048,2]
[399453518,1766367032023,-500.0,0.00010055,2]
[399453519,1766367032032,-259.0314593,0.000101,2]
[399453520,1766367032043,-500.0,0.00010108,2]
[399453521,1766367032052,-466.25054332,0.00010108,2]
[399453522,1766367032062,-500.0,0.00010108,2]
[399453524,1766367032071,-500.0,0.00010108,2]
[399453526,1766367032080,-200.0,0.00010108,2]
[399453528,1766367032090,-500.0,0.00010108,2]
[399453529,1766367032100,-500.0,0.00010108,2]
[399453530,1766367032109,-500.0,0.00010108,2]
[399453531,1766367032119,-500.0,0.00010108,2]
[399453532,1766367032128,-500.0,0.00010108,2]
[399453533,1766367032137,-500.0,0.00010108,2]
[399453534,1766367032146,-500.0,0.00010108,2]
[399453535,1766367032155,-500.0,0.00010108,2]
[399453536,1766367032164,-500.0,0.00010108,2]
[399453537,1766367032174,-500.0,0.00010108,2]
[399453538,1766367032183,-500.0,0.00010108,2]
[399453539,1766367032192,-500.0,0.00010108,2]
[399453540,1766367032201,-500.0,0.00010108,2]
[399453541,1766367032211,-500.0,0.00010108,2]
[399453542,1766367032220,-500.0,0.00010108,2]
[399453543,1766367032229,-500.0,0.00010108,2]
[399453544,1766367032238,-500.0,0.00010108,2]
[399453545,1766367032247,-500.0,0.00010108,2]
[399453546,1766367032256,-500.0,0.00010108,2]
[399453547,1766367032266,-500.0,0.00010108,2]
[399453548,1766367032275,-500.0,0.00010108,2]
[399453549,1766367032284,-500.0,0.00010108,2]
[399453550,1766367032295,-500.0,0.00010108,2]
[399453551,1766367032304,-500.0,0.00010108,2]
[399453552,1766367032315,-500.0,0.00010108,2]
[399453553,1766367032325,-500.0,0.00010108,2]
[399453554,1766367032334,-500.0,0.00010108,2]
[399453555,1766367032343,-367.5990315,0.00010108,2]
[399453556,1766367032353,-3975.05,0.0001011,2]
[399453557,1766367032362,-151.0,0.00010142,2]
[399453558,1766367032373,-151.0,0.00010142,2]
[399453559,1766367032383,-151.0,0.00010142,2]
[399453560,1766367032393,-151.0,0.00010142,2]
[399453561,1766367032403,-151.0,0.00010142,2]
[399453562,1766367032413,-151.0,0.00010142,2]
[399453563,1766367032424,-151.0,0.00010142,2]
[399453564,1766367032434,-151.0,0.00010142,2]
[399453565,1766367032443,-151.0,0.00010142,2]
[399453566,1766367032453,-151.0,0.00010142,2]
[399453567,1766367032463,-151.0,0.00010142,2]
[399453568,1766367032472,-151.0,0.00010142,2]
[399453569,1766367032481,-151.0,0.00010142,2]
[399453570,1766367032491,-151.0,0.00010142,2]
[399453571,1766367032504,-151.0,0.00010142,2]
[399453572,1766367032513,-151.0,0.00010142,2]
[399453573,1766367032523,-151.0,0.00010142,2]
[399453574,1766367032532,-151.0,0.00010142,2]
[399453575,1766367032546,-151.0,0.00010142,2]
[399453576,1766367032556,-151.0,0.00010142,2]
[399453577,1766367032566,-150.99,0.00010147,2]
[399453578,1766367032575,-3015.40409812,0.00010147,2]
[399453579,1766367037713,-167.47132359,0.00010047,2]
[399453581,1766367037722,-614.82915476,0.00010047,2]
[399453582,1766367037732,-201.38985096,0.00010047,2]
[399453583,1766367037741,-592.28455683,0.00010147,2]
[399453584,1766367037827,-6392.30134505,0.00010147,2]
[399453585,1766367037837,-9999.99,0.00010147,2]
[399453586,1766367037846,-5525.7920271,0.00010147,2]
[399453587,1766367037857,-4474.1979729,0.00010147,2]
[399453588,1766367037867,-150.99,0.00010147,2]
[399453589,1766367037876,-4999.99,0.00010147,2]
[399453590,1766367037885,-999.99,0.00010147,2]
[399453591,1766367037895,-9999.99,0.00010147,2]
[399453592,1766367037906,-9999.99,0.00010147,2]
[399453593,1766367037915,-299.99,0.00010147,2]
[399453594,1766367037925,-185.928,0.00010147,2]
[399453595,1766367037934,-1000000.0,0.00010148,2]
[399453596,1766367037944,-2235.14725565,0.00010238,2]
[399453597,1766367037953,-163.3877,0.00010248,2]
[399453598,1766367037962,-21750.9048,0.00010248,2]
[399453599,1766367037972,-1000.0,0.00010248,2]
[399453600,1766367037981,-3975.05,0.00010426,2]
[399453601,1766367037990,-6191.92,0.00010475,2]
[399453602,1766367037999,-26163.1,0.00010531,2]
[399453603,1766367038008,-250.0,0.00010692,2]
[399453604,1766367038018,-267.40656056,0.000107,2]
[399453605,1766367038027,-3975.05,0.00010742,2]
[399453606,1766367038036,-151.97504289,0.00010777,2]
[399453607,1766367038046,-150.0,0.00010777,2]
[399453608,1766367038056,-150.0,0.00010777,2]
[399453609,1766367038066,-150.0,0.00010777,2]
[399453611,1766367038076,-150.0,0.00010777,2]
[399453613,1766367038085,-150.0,0.00010777,2]
[399453615,1766367038095,-150.0,0.00010777,2]
[399453617,1766367038105,-150.0,0.00010777,2]
[399453620,1766367038115,-261.25241672,0.00010777,2]
[399453621,1766367038124,-150.0,0.00010777,2]
[399453623,1766367038134,-193.3007582,0.00010777,2]
[399453625,1766367038143,-150.0,0.00010777,2]
[399453628,1766367038153,-985.00508218,0.000108,2]
[399453629,1766367038162,-150.0,0.00010959,2]
[399453632,1766367038172,-669.66014112,0.00010977,2]
[399453634,1766367038182,-5531.73266005,0.00011,2]
[399453636,1766367038191,-1200.0,0.0001105,2]
[399453638,1766367038200,-1509.0,0.0001105,2]
[399453640,1766367038209,-3975.05,0.00011058,2]
[399453642,1766367038218,-27396.24637479,0.00011099,2]
[399453643,1766367038228,-27396.24637477,0.00011099,2]
[399453645,1766367038237,-845.45362525,0.0001119,2]
[399453647,1766367038246,-3975.05,0.00011374,2]
[399453649,1766367038255,-27396.24637477,0.00011653,2]
[399453651,1766367038264,-3975.05,0.0001169,2]
[399453653,1766367038273,-500.0,0.00011892,2]
[399453655,1766367038282,-500.0,0.00011892,2]
[399453657,1766367038291,-443.0,0.00011892,2]
[399453659,1766367038301,-150.0,0.00011892,2]
[399453661,1766367038310,-150.0,0.00011892,2]
[399453662,1766367038319,-150.0,0.00011892,2]
[399453664,1766367038329,-150.0,0.00011892,2]
[399453665,1766367038338,-250.0,0.00011892,2]
[399453667,1766367038347,-500.0,0.00011892,2]
[399453669,1766367038356,-500.0,0.00011892,2]
[399453670,1766367038365,-389.20465291,0.00011892,2]
[399453672,1766367038374,-669.66014112,0.00011906,2]
[399453673,1766367038383,-5927.98541634,0.00012,2]
[399453674,1766367038391,-3975.05,0.00012006,2]
[399453676,1766367038400,-845.45362525,0.00012332,2]
[399453677,1766367038410,-27396.24637477,0.00012406,2]
[399453679,1766367038419,-250.0,0.00012652,2]
[399453680,1766367038429,-322.99,0.00012977,2]
[399453682,1766367038438,-129043.6888462,0.0001299,2]
[399453683,1766367038447,-4412.45542403,0.00013,2]
[399453685,1766367038456,-5328.33632405,0.0001305,2]
[399453687,1766367038465,-27396.24637477,0.00013158,2]
[399453689,1766367038476,-150.0,0.00013424,2]
[399453690,1766367038485,-150.0,0.00013424,2]
[399453692,1766367038494,-150.0,0.00013424,2]
[399453694,1766367038507,-150.0,0.00013424,2]
[399453696,1766367038518,-150.0,0.00013424,2]
[399453698,1766367038528,-150.0,0.00013424,2]
[399453700,1766367038537,-845.45362525,0.00013474,2]
[399453702,1766367038548,-1000.0,0.000135,2]
[399453704,1766367038558,-500.0,0.00013643,2]
[399453706,1766367038568,-500.0,0.00013643,2]
[399453708,1766367038577,-500.0,0.00013643,2]
[399453710,1766367038587,-201.68060624,0.00013643,2]
[399453712,1766367038596,-500.0,0.00013643,2]
[399453714,1766367038605,-165.33365869,0.00013643,2]
[399453716,1766367038614,-500.0,0.00013643,2]
[399453718,1766367038624,-500.0,0.00013643,2]
[399453720,1766367038633,-500.0,0.00013643,2]
[399453722,1766367038642,-500.0,0.00013643,2]
[399453724,1766367038651,-500.0,0.00013643,2]
[399453725,1766367038663,-500.0,0.00013643,2]
[399453727,1766367038672,-500.0,0.00013643,2]
[399453729,1766367038682,-504.58016272,0.00013643,2]
[399453731,1766367038691,-500.0,0.00013643,2]
[399453733,1766367038700,-500.0,0.00013643,2]
[399453735,1766367038709,-500.0,0.00013698,2]
[399453737,1766367038719,-505.3255501,0.00013698,2]
[399453739,1766367038728,-416.97007876,0.00013698,2]
[399453741,1766367038737,-508.98134456,0.00013698,2]
[399453743,1766367038747,-500.0,0.00013698,2]
[399453745,1766367038756,-500.0,0.00013698,2]
[399453747,1766367038769,-500.0,0.00013698,2]
[399453749,1766367038781,-500.0,0.00013698,2]
[399453751,1766367038790,-500.0,0.00013698,2]
[399453753,1766367038800,-500.0,0.00013698,2]
[399453755,1766367038809,-500.0,0.00013698,2]
[399453757,1766367038818,-500.0,0.00013698,2]
[399453759,1766367038828,-500.0,0.00013698,2]
[399453761,1766367038838,-500.0,0.00013698,2]
[399453763,1766367038847,-500.0,0.00013698,2]
[399453765,1766367038856,-500.0,0.00013698,2]
[399453767,1766367038867,-500.0,0.00013698,2]
[399453768,1766367038877,-500.0,0.00013698,2]
[399453770,1766367038887,-500.0,0.00013698,2]
[399453772,1766367038897,-500.0,0.00013698,2]
[399453774,1766367038906,-500.0,0.00013698,2]
[399453776,1766367038915,-500.0,0.00013698,2]
[399453778,1766367038924,-500.0,0.00013698,2]
[399453779,1766367038934,-500.0,0.00013698,2]
[399453780,1766367038944,-500.0,0.00013698,2]
[399453781,1766367038953,-500.0,0.00013698,2]
[399453782,1766367038963,-361.71177752,0.00013698,2]
[399453783,1766367038973,-168.98508809,0.00013698,2]
[399453784,1766367038983,-166.66,0.00013699,2]
[399453785,1766367038993,-992.87,0.00013699,2]
[399453786,1766367039003,-166.66,0.00013836,2]
[399453787,1766367039012,-27396.24637477,0.00013911,2]
[399453788,1766367039022,-166.66,0.00013931,2]
[399453789,1766367039039,-166.66,0.00013973,2]
[399453790,1766367039057,-992.87,0.00013973,2]
[399453791,1766367039067,-1500.0,0.00014,2]
[399453792,1766367039076,-166.66,0.0001411,2]
[399453793,1766367039086,-1000.0,0.00014191,2]
[399453794,1766367039095,-1000.0,0.00014191,2]
[399453795,1766367039372,-1000.0,0.00014191,2]
[399453796,1766367039383,-1000.0,0.00014191,2]
[399453797,1766367039392,-1000.0,0.00014191,2]
[399453798,1766367039401,-626.98496752,0.00014191,2]
[399453799,1766367039411,-1000.0,0.00014191,2]
[399453800,1766367039420,-1000.0,0.00014191,2]
[399453801,1766367039429,-1072.96293358,0.00014191,2]
[399453802,1766367039440,-1000.0,0.00014191,2]
[399453803,1766367039450,-1000.0,0.00014191,2]
[399453804,1766367039460,-459.78950383,0.00014191,2]
[399453805,1766367039470,-1000.0,0.00014191,2]
[399453806,1766367039481,-166.66,0.00014247,2]
[399453807,1766367039491,-992.87,0.00014247,2]
[399453808,1766367039511,-8879.16,0.00014271,2]
[399453809,1766367039529,-166.66,0.00014384,2]
[399453810,1766367039544,-10278.21634745,0.0001439,2]
[399453811,1766367039554,-166.66,0.0001439,2]
[399453812,1766367039564,-992.87,0.00014521,2]
[399453813,1766367039574,-151.0,0.00014574,2]
[399453814,1766367039583,-845.45362525,0.00014616,2]
[399453815,1766367039592,-27396.24637477,0.00014663,2]
[399453816,1766367039601,-1500.0,0.00014739,2]
[399453817,1766367039611,-1500.0,0.00014739,2]
[399453818,1766367039620,-980.21424336,0.00014739,2]
[399453819,1766367039629,-366.15226393,0.00014739,2]
[399453820,1766367039639,-1500.0,0.00014739,2]
[399453821,1766367039649,-1500.0,0.00014739,2]
[399453822,1766367039658,-1500.0,0.00014739,2]
[399453823,1766367039667,-1500.0,0.00014739,2]
[399453824,1766367039678,-1500.0,0.00014739,2]
[399453825,1766367039687,-390.7850892,0.00014739,2]
[399453826,1766367039698,-992.87,0.00014795,2]
[399453827,1766367039708,-3210.1,0.00014848,2]
[399453829,1766367039718,-166.66,0.0001485,2]
[399453830,1766367039726,-213.95,0.0001486,2]
[399453831,1766367039735,-307.55,0.00014865,2]
[399453832,1766367039744,-171.28,0.00014885,2]
[399453833,1766367039753,-5014.92,0.00014999,2]
[399453834,1766367039762,-2040.75911121,0.00015,2]
[399453836,1766367039771,-1344.08769236,0.00015,14]
[399453837,1766367039780,-7944.46519883,0.00015,2]
[399453838,1766367039789,-21352.27553926,0.00015,2]
[399453839,1766367039799,-1154.75497368,0.00015,2]
[399453840,1766367039808,-25859.84987091,0.00015,2]
[399453841,1766367039817,-992.87,0.00015069,2]
[399453842,1766367039827,-2000.0,0.00015287,2]
[399453843,1766367039836,-2000.0,0.00015287,2]
[399453844,1766367039845,-351.34245587,0.00015287,2]
[399453845,1766367039854,-2000.0,0.00015287,2]
[399453846,1766367039864,-2000.0,0.00015287,2]
[399453847,1766367039873,-2000.0,0.00015287,2]
[399453848,1766367039882,-2000.0,0.00015287,2]
[399453849,1766367039891,-1517.64,0.000153,2]
[399453850,1766367039900,-166.66,0.0001531,2]
[399453851,1766367039910,-992.87,0.00015343,2]
[399453852,1766367039920,-505.85702931,0.000154,2]
[399453853,1766367039929,-27396.24637477,0.00015416,2]
[399453854,1766367039938,-500.0,0.00015493,2]
[399453855,1766367039947,-16701.27872054,0.00015556,2]
[399453856,1766367039957,-992.87,0.00015617,2]
[399453857,1766367039966,-845.45362525,0.00015758,2]
[399453858,1766367039976,-166.66,0.0001577,2]
[399453859,1766367039985,-2228.99632343,0.00015807,2]
[399453860,1766367039994,-1728.62638804,0.00015835,2]
[399453861,1766367040003,-2500.0,0.00015835,2]
[399453862,1766367040013,-1507.1328153,0.00015835,2]
[399453863,1766367040022,-2500.0,0.00015835,2]
[399453864,1766367040031,-590.93800386,0.00015835,2]
[399453865,1766367040040,-952.82457792,0.00015835,2]
[399453866,1766367040049,-992.87,0.00015891,2]
[399453867,1766367040058,-151.0,0.00015997,2]
[399453868,1766367040067,-23721.69410328,0.00016,2]
[399453869,1766367040076,-1105894.02027858,0.00016,4]
[399453870,1766367040090,-1008.93843287,0.00016,4]
[399453871,1766367040101,-500.0,0.00016,4]
[399453872,1766367040111,-2364.81478464,0.00016,4]
[399453873,1766367040200,-514833.60556902,0.00016,4]
[399453874,1766367040209,-2564.98490942,0.00016,2]
[399453875,1766367040218,-770.91591558,0.000161,2]
[399453876,1766367040228,-992.87,0.00016165,2]
[399453877,1766367040237,-27396.24637477,0.00016168,2]
[399453878,1766367040246,-2564.98490942,0.0001618,2]
[399453879,1766367040255,-5000.00526982,0.000162,5]
[399453880,1766367040264,-166.66,0.0001623,2]
[399453881,1766367040273,-1515.76106223,0.00016338,2]
[399453883,1766367040282,-168.5702354,0.00016338,2]
[399453885,1766367040291,-2564.98490942,0.0001636,2]
[399453887,1766367040301,-3003.160494,0.00016383,2]
[399453889,1766367040312,-2457.72726214,0.00016383,2]
[399453891,1766367040321,-2235.14725565,0.00016428,2]
[399453893,1766367040330,-1000.0,0.00016437,2]
[399453895,1766367040339,-1000.0,0.00016437,2]
[399453897,1766367040348,-705.078,0.00016437,2]
[399453898,1766367040357,-9583.4,0.00016438,2]
[399453899,1766367040366,-800.0,0.00016438,2]
[399453900,1766367040375,-992.87,0.00016439,2]
[399453901,1766367040384,-193.09097811,0.00016473,2]